fUST/lending_fUST_20251030
["ID","MTS","AMOUNT","RATE_DAILY","PERIOD"]
[392653655,1761781832664,-21013.26743835,0.00030226,2]
[392653656,1761781832676,-3062.210791,0.00030226,2]
[392653695,1761781838070,-242.33853386,0.0002589,2]
[392653697,1761781838079,-285.95946996,0.0002789,2]
[392653699,1761781838088,-329.58040606,0.0002989,2]
[392653701,1761781838098,-765.62748575,0.00030226,2]
[392653702,1761781838108,-1397.83770825,0.00030226,2]
[392653704,1761781838118,-151.0,0.00030236,31]
[392653706,1761781838127,-151.0,0.00030236,31]
[392653708,1761781838137,-500.0,0.00030246,4]
[392653710,1761781838147,-500.0,0.00030246,4]
[392653712,1761781838156,-1299.69,0.00030253,4]
[392653714,1761781838166,-500.0,0.00030253,4]
[392653716,1761781838175,-550.95,0.00030253,4]
[392653718,1761781838184,-500.0,0.00030263,4]
[392653720,1761781838194,-596.0,0.00030269,2]
[392653723,1761781838203,-500.0,0.00030269,2]
[392653726,1761781838212,-151.0,0.00030269,2]
[392653728,1761781838221,-500.0,0.00030269,2]
[392653730,1761781838230,-500.0,0.00030269,2]
[392653733,1761781838240,-500.0,0.00030269,2]
[392653736,1761781838249,-500.0,0.00030269,2]
[392653738,1761781838259,-500.0,0.00030269,2]
[392653740,1761781838268,-500.0,0.00030269,2]
[392653742,1761781838276,-151.0,0.00030269,2]
[392653744,1761781838286,-151.0,0.00030269,2]
[392653746,1761781838295,-500.0,0.00030269,2]
[392653748,1761781838304,-500.0,0.00030269,2]
[392653750,1761781838313,-500.0,0.00030269,2]
[392653752,1761781838323,-500.0,0.0003027,4]
[392653754,1761781838332,-500.0,0.0003027,4]
[392653756,1761781838343,-500.0,0.0003027,4]
[392653758,1761781838355,-500.0,0.0003027,4]
[392653760,1761781838366,-500.0,0.0003027,4]
[392653762,1761781838376,-500.0,0.0003027,4]
[392653764,1761781838385,-500.0,0.0003027,4]
[392653766,1761781838394,-500.0,0.0003027,4]
[392653768,1761781838403,-408.75232647,0.0003027,4]
[392653770,1761781838412,-500.0,0.0003027,4]
[392653772,1761781838422,-500.0,0.0003027,4]
[392653774,1761781838431,-151.0,0.00030313,31]
[392653776,1761781838440,-151.0,0.00030313,31]
[392653778,1761781838450,-151.0,0.00030313,31]
[392653780,1761781838459,-24841.1057151,0.00030313,2]
[392653782,1761781838469,-1397.83770825,0.00030313,2]
[392653784,1761781838479,-500.0,0.00030323,26]
[392653786,1761781838488,-151.0,0.00030323,26]
[392653788,1761781838497,-500.0,0.00030323,26]
[392653790,1761781838506,-151.0,0.00030323,26]
[392653792,1761781838515,-151.66255476,0.00030323,26]
[392653794,1761781838525,-195.53526998,0.00030323,26]
[392653796,1761781838535,-500.0,0.00030323,26]
[392653798,1761781838545,-151.0,0.00030323,26]
[392653800,1761781838555,-596.0,0.00030324,2]
[392653802,1761781838564,-500.0,0.00030324,2]
[392653804,1761781838573,-171.33229204,0.00030324,2]
[392653806,1761781838583,-500.0,0.00030324,2]
[392653808,1761781838592,-500.0,0.00030324,2]
[392653810,1761781838601,-500.0,0.00030324,2]
[392653812,1761781838610,-500.0,0.00030324,2]
[392653814,1761781838620,-500.0,0.00030324,2]
[392653816,1761781838629,-500.0,0.00030324,2]
[392653818,1761781838638,-151.0,0.00030324,2]
[392653820,1761781838648,-500.0,0.00030324,2]
[392653822,1761781838657,-500.0,0.00030324,2]
[392653824,1761781838666,-500.0,0.00030324,2]
[392653826,1761781838675,-500.0,0.00030325,4]
[392653828,1761781838685,-500.0,0.00030325,4]
[392653830,1761781838694,-500.0,0.00030325,4]
[392653833,1761781838703,-500.0,0.00030325,4]
[392653835,1761781838712,-151.0,0.00030347,7]
[392653836,1761781838722,-151.0,0.00030347,31]
[392653838,1761781838731,-151.0,0.00030347,31]
[392653841,1761781838740,-151.0,0.00030347,31]
[392653843,1761781838750,-500.0,0.00030373,5]
[392653845,1761781838759,-500.0,0.00030373,5]
[392653847,1761781838769,-500.0,0.00030373,5]
[392653849,1761781838778,-500.0,0.00030378,26]
[392653851,1761781838787,-151.53440013,0.00030378,26]
[392653853,1761781838796,-500.0,0.00030378,26]
[392653855,1761781838806,-151.0,0.00030378,26]
[392653857,1761781838815,-500.0,0.00030378,26]
[392653859,1761781838825,-273.79257349,0.00030378,26]
[392653861,1761781838834,-192.277689,0.00030378,31]
[392653863,1761781838843,-151.0,0.00030378,31]
[392653865,1761781838855,-596.0,0.00030379,2]
[392653867,1761781838865,-500.0,0.00030379,2]
[392653869,1761781838874,-500.0,0.00030379,2]
[392653871,1761781838884,-500.0,0.00030379,2]
[392653873,1761781838893,-500.0,0.00030379,2]
[392653875,1761781838904,-500.0,0.00030379,2]
[392653877,1761781838913,-500.0,0.00030379,2]
[392653879,1761781838923,-500.0,0.00030379,2]
[392653881,1761781838933,-258.47090245,0.00030379,2]
[392653883,1761781838942,-500.0,0.00030379,2]
[392653884,1761781838952,-500.0,0.00030379,2]
[392653885,1761781838961,-500.0,0.00030379,2]
[392653886,1761781838971,-428.75224838,0.0003038,4]
[392653887,1761781838981,-559.87101223,0.0003038,4]
[392653888,1761781838990,-385.08809342,0.0003038,4]
[392653889,1761781838999,-500.0,0.0003038,4]
[392653890,1761781839009,-336.37,0.00030384,2]
[392653891,1761781839019,-164.02004199,0.00030433,26]
[392653892,1761781839028,-500.0,0.00030433,26]
[392653893,1761781839038,-151.0,0.00030433,26]
[392653894,1761781839047,-500.0,0.00030433,26]
[392653895,1761781839057,-596.0,0.00030433,2]
[392653896,1761781839067,-500.0,0.00030433,2]
[392653897,1761781839076,-646.1645026,0.00030433,2]
[392653898,1761781839087,-500.0,0.00030433,2]
[392653899,1761781839096,-500.0,0.00030433,2]
[392653900,1761781839107,-500.0,0.00030433,2]
[392653901,1761781839117,-500.0,0.00030433,2]
[392653902,1761781839127,-500.0,0.00030433,2]
[392653903,1761781839136,-500.0,0.00030433,2]
[392653904,1761781839146,-500.0,0.00030433,2]
[392653905,1761781839155,-500.0,0.00030434,4]
[392653906,1761781839312,-500.0,0.00030456,2]
[392653907,1761781839322,-183.89,0.00030465,3]
[392653908,1761781839331,-551.69,0.00030465,3]
[392653909,1761781839342,-24841.1057151,0.00030465,2]
[392653910,1761781839351,-1135.76435073,0.00030465,2]
[392653911,1761781839363,-262.07335752,0.00030465,2]
[392653912,1761781839373,-151.0,0.00030467,31]
[392653913,1761781839383,-500.0,0.00030473,5]
[392653914,1761781839392,-500.0,0.00030473,5]
[392653915,1761781839400,-500.0,0.00030473,5]
[392653916,1761781839410,-367.78,0.00030474,3]
[392653917,1761781839419,-151.524672,0.00030474,30]
[392653918,1761781839428,-151.0,0.00030474,31]
[392653919,1761781839438,-151.0,0.00030474,31]
[392653920,1761781839447,-151.0,0.00030474,31]
[392653921,1761781839456,-151.0,0.00030474,31]
[392653922,1761781839465,-151.0,0.00030474,2]
[392653923,1761781839474,-151.0,0.00030474,2]
[392653924,1761781839483,-151.0,0.00030474,31]
[392653925,1761781839493,-160.152937,0.00030474,31]
[392653926,1761781839502,-151.0,0.00030474,31]
[392653927,1761781839511,-151.0,0.00030474,31]
[392653928,1761781839520,-151.0,0.00030475,31]
[392653929,1761781839529,-151.0,0.00030475,31]
[392653930,1761781839539,-151.0,0.00030475,31]
[392653931,1761781839548,-151.0,0.00030475,31]
[392653932,1761781839557,-151.0,0.00030475,31]
[392653933,1761781839567,-151.0,0.00030475,31]
[392653934,1761781839576,-245.18,0.00030475,3]
[392653935,1761781839586,-24841.1057151,0.00030475,2]
[392653936,1761781839595,-1397.83770825,0.00030475,2]
[392653937,1761781839605,-151.0,0.00030484,2]
[392653938,1761781839614,-164.205994,0.00030485,31]
[392653939,1761781839624,-164.205994,0.00030485,31]
[392653940,1761781839633,-164.205994,0.00030485,31]
[392653941,1761781839642,-164.205994,0.00030485,31]
[392653942,1761781839652,-151.0,0.00030485,15]
[392653943,1761781839661,-151.0,0.00030485,31]
[392653944,1761781839670,-151.0,0.00030485,31]
[392653945,1761781839681,-151.0,0.00030485,31]
[392653946,1761781839690,-152.580694,0.00030485,31]
[392653947,1761781839700,-151.0,0.00030485,31]
[392653948,1761781839709,-155.810509,0.00030485,31]
[392653949,1761781839719,-151.0,0.00030485,2]
[392653950,1761781839729,-151.0,0.00030485,2]
[392653951,1761781839741,-151.0,0.00030485,31]
[392653953,1761781839750,-151.0,0.00030485,31]
[392653954,1761781839759,-151.0,0.00030485,31]
[392653955,1761781839768,-151.0,0.00030485,31]
[392653957,1761781839778,-13532.07916923,0.00030485,2]
[392653958,1761781839789,-8784.3933303,0.00030485,2]
[392653959,1761781839800,-19021.35759496,0.00030485,2]
[392653960,1761781839811,-5252.21412844,0.00030485,2]
[392653961,1761781839820,-151.0,0.00030487,31]
[392653962,1761781839829,-500.0,0.00030487,26]
[392653963,1761781839839,-289.3545318,0.00030487,26]
[392653964,1761781839848,-586.92363098,0.00030487,26]
[392653965,1761781839862,-151.0,0.00030488,31]
[392653966,1761781839872,-151.0,0.00030488,31]
[392653967,1761781839881,-226.725568,0.00030488,31]
[392653968,1761781839891,-596.0,0.00030488,2]
[392653969,1761781839901,-500.0,0.00030488,2]
[392653970,1761781839911,-500.0,0.00030488,2]
[392653971,1761781839921,-500.0,0.00030488,2]
[392653972,1761781839932,-500.0,0.00030488,2]
[392653973,1761781839942,-501.96834589,0.00030488,2]
[392653974,1761781839952,-500.0,0.00030488,2]
[392653975,1761781839961,-500.0,0.00030488,2]
[392653976,1761781839971,-500.0,0.00030488,2]
[392653977,1761781839980,-500.0,0.00030489,4]
[392653978,1761781839990,-24841.1057151,0.00030512,2]
[392653979,1761781839999,-1397.83770825,0.00030512,2]
[392653980,1761781840009,-500.0,0.0003052,4]
[392653981,1761781840019,-437.31,0.0003052,4]
[392653982,1761781840029,-502.94113617,0.00030521,5]
[392653983,1761781840039,-918.62327633,0.00030521,5]
[392653984,1761781840048,-1081.82296235,0.00030521,5]
[392653985,1761781840057,-1000.0,0.00030521,5]
[392653986,1761781840066,-1299.69,0.00030527,4]
[392653988,1761781840076,-500.0,0.00030527,4]
[392653989,1761781840086,-550.95,0.00030527,4]
[392653990,1761781840095,-500.0,0.00030537,4]
[392653992,1761781840105,-151.0,0.00030539,2]
[392653993,1761781840113,-500.0,0.00030542,26]
[392653994,1761781840122,-596.0,0.00030543,2]
[392653995,1761781840131,-303.77453925,0.00030543,2]
[392653996,1761781840141,-322.34993442,0.00030543,2]
[392653997,1761781840150,-500.0,0.00030543,2]
[392653998,1761781840159,-500.0,0.00030543,2]
[392653999,1761781840168,-500.0,0.00030543,2]
[392654000,1761781840177,-500.0,0.00030543,2]
[392654001,1761781840186,-500.0,0.00030543,2]
[392654002,1761781840195,-500.0,0.00030544,4]
[392654003,1761781840204,-151.0,0.00030544,31]
[392654004,1761781840213,-500.0,0.00030573,5]
[392654005,1761781840222,-151.0,0.00030573,31]
[392654006,1761781840231,-286.49441847,0.00030594,2]
[392654007,1761781840240,-500.0,0.00030597,26]
[392654008,1761781840249,-596.0,0.00030598,2]
[392654009,1761781840259,-500.0,0.00030598,2]
[392654010,1761781840268,-500.0,0.00030598,2]
[392654011,1761781840276,-500.0,0.00030598,2]
[392654012,1761781840285,-500.0,0.00030598,2]
[392654013,1761781840294,-500.0,0.00030598,2]
[392654014,1761781840302,-500.0,0.00030599,4]
[392654015,1761781840311,-151.0,0.00030599,31]
[392654016,1761781840320,-151.0,0.00030599,2]
[392654017,1761781840329,-151.0,0.00030599,2]
[392654018,1761781840338,-151.0,0.00030599,31]
[392654019,1761781840347,-151.0,0.00030599,31]
[392654021,1761781840361,-151.0,0.00030599,31]
[392654022,1761781840370,-1000.0,0.00030621,5]
[392654023,1761781840379,-1000.0,0.00030621,5]
[392654025,1761781840388,-1075.7565137,0.00030646,2]
[392654026,1761781840397,-500.0,0.00030652,26]
[392654028,1761781840406,-596.0,0.00030653,2]
[392654030,1761781840415,-500.0,0.00030653,2]
[392654032,1761781840425,-369.46277577,0.00030653,2]
[392654033,1761781840434,-500.0,0.00030653,2]
[392654035,1761781840443,-198.56606281,0.00030653,2]
[392654037,1761781840452,-151.0,0.00030701,31]
[392654039,1761781840461,-151.0,0.00030701,31]
[392654041,1761781840471,-3630.95728166,0.00030701,2]
[392654043,1761781840480,-151.0,0.00030703,6]
[392654044,1761781840489,-500.0,0.00030707,26]
[392654046,1761781840499,-151.0,0.00030707,31]
[392654048,1761781840508,-596.0,0.00030707,2]
[392654050,1761781840518,-500.0,0.00030707,2]
[392654051,1761781840528,-500.0,0.00030707,2]
[392654052,1761781840538,-214.27359259,0.0003073,2]
[392654053,1761781840551,-285.72640741,0.0003073,2]
[392654054,1761781840561,-500.0,0.00030761,26]
[392654055,1761781840571,-596.0,0.00030762,2]
[392654056,1761781840581,-500.0,0.00030762,2]
[392654057,1761781840591,-500.0,0.00030762,2]
[392654058,1761781840601,-150.0,0.00030773,5]
[392654059,1761781840611,-1040.840488,0.00030774,2]
[392654060,1761781840622,-19625.33508862,0.0003078,2]
[392654061,1761781840634,-5215.77062648,0.0003078,2]
[392654062,1761781840643,-1397.83770825,0.0003078,2]
[392654063,1761781840653,-151.0,0.0003079,31]
[392654064,1761781840662,-151.0,0.0003079,31]
[392654065,1761781840671,-433.51,0.00030794,4]
[392654066,1761781840680,-1299.69,0.00030801,4]
[392654067,1761781840689,-645.16219,0.00030801,4]
[392654068,1761781840699,-550.95,0.00030801,4]
[392654069,1761781840708,-500.0,0.00030811,4]
[392654070,1761781840717,-500.0,0.00030816,26]
[392654071,1761781840727,-596.0,0.00030817,2]
[392654072,1761781840736,-500.0,0.00030817,2]
[392654073,1761781840745,-500.0,0.00030817,2]
[392654074,1761781840753,-596.0,0.00030872,2]
[392654075,1761781840762,-500.0,0.00030872,2]
[392654076,1761781840771,-500.0,0.00030872,2]
[392654077,1761781840780,-151.0,0.00030873,31]
[392654078,1761781840789,-151.0,0.00030873,2]
[392654079,1761781840798,-151.0,0.00030873,2]
[392654080,1761781840808,-151.0,0.00030873,31]
[392654081,1761781840819,-151.0,0.00030873,31]
[392654082,1761781840829,-192.878155,0.00030873,31]
[392654083,1761781840838,-160.0,0.00030873,2]
[392654084,1761781840847,-24841.1057151,0.0003088,2]
[392654085,1761781840863,-1397.83770825,0.0003088,2]
[392654086,1761781840872,-160.947817,0.0003089,31]
[392654087,1761781840881,-151.0,0.0003089,31]
[392654088,1761781840890,-1000.0,0.00030921,5]
[392654089,1761781840901,-596.0,0.00030927,2]
[392654090,1761781840912,-500.0,0.00030927,2]
[392654091,1761781840921,-500.0,0.00030927,2]
[392654092,1761781840930,-18804.05380949,0.0003097,2]
[392654093,1761781840942,-6037.05190561,0.0003097,2]
[392654094,1761781840952,-1397.83770825,0.0003097,2]
[392654095,1761781840961,-164.205994,0.00030977,31]
[392654096,1761781840970,-164.205994,0.00030977,31]
[392654097,1761781840979,-164.205994,0.00030977,31]
[392654098,1761781840989,-164.205994,0.00030977,31]
[392654099,1761781840998,-151.0,0.0003098,31]
[392654100,1761781841007,-151.0,0.0003098,2]
[392654101,1761781841017,-228.856773,0.0003098,2]
[392654102,1761781841027,-151.0,0.0003098,31]
[392654103,1761781841036,-151.0,0.0003098,31]
[392654104,1761781841045,-596.0,0.00030981,2]
[392654105,1761781841054,-379.0,0.00030981,2]
[392654106,1761781841064,-500.0,0.00030981,2]
[392654107,1761781841073,-223.793256,0.0003099,31]
[392654108,1761781841082,-161.76327415,0.00031,120]
[392654109,1761781841094,-168.47838307,0.00031,120]
[392654110,1761781841103,-1725.32,0.00031,2]
[392654111,1761781841112,-500.0,0.00031004,2]
[392654112,1761781841121,-1000.0,0.00031021,5]
[392654113,1761781841130,-596.0,0.00031036,2]
[392654114,1761781841139,-500.0,0.00031036,2]
[392654115,1761781841148,-1299.69,0.00031075,4]
[392654116,1761781841158,-550.95,0.00031075,4]
[392654117,1761781841167,-534.95,0.00031085,4]
[392654118,1761781841177,-596.0,0.00031091,2]
[392654119,1761781841186,-500.0,0.00031091,2]
[392654120,1761781841196,-1000.0,0.00031121,5]
[392654121,1761781841205,-596.0,0.00031146,2]
[392654122,1761781841213,-500.0,0.00031146,2]
[392654123,1761781841223,-24841.1057151,0.00031182,2]
[392654124,1761781841233,-1397.83770825,0.00031182,2]
[392654125,1761781841241,-596.0,0.00031201,2]
[392654126,1761781841251,-500.70653643,0.00031201,2]
[392654127,1761781841261,-213.96859442,0.00031216,2]
[392654128,1761781841270,-192.0,0.0003122,2]
[392654129,1761781841279,-596.0,0.00031255,2]
[392654130,1761781841289,-500.0,0.00031278,2]
[392654131,1761781841298,-596.0,0.0003131,2]
[392654132,1761781841308,-400.0,0.00031321,5]
[392654133,1761781841317,-1299.69,0.00031349,4]
[392654134,1761781841326,-550.95,0.00031349,4]
[392654135,1761781841335,-192.0,0.00031356,7]
[392654136,1761781841344,-596.0,0.00031365,2]
[392654137,1761781841353,-192.0,0.0003139,2]
[392654138,1761781841362,-596.0,0.0003142,2]
[392654139,1761781841371,-260.0,0.00031421,2]
[392654140,1761781841380,-3630.95728166,0.0003143,2]
[392654141,1761781841389,-1500.0,0.00031468,5]
[392654142,1761781841398,-596.0,0.00031474,2]
[392654143,1761781841407,-607.46260127,0.00031529,2]
[392654144,1761781841417,-192.0,0.00031548,7]
[392654145,1761781841426,-500.0,0.00031552,2]
[392654146,1761781841435,-1500.0,0.00031568,5]
[392654147,1761781841444,-1299.69,0.00031623,4]
[392654148,1761781841452,-550.95,0.00031623,4]
[392654149,1761781841461,-151.0,0.00031631,6]
[392654150,1761781841470,-1103.98156505,0.00031658,2]
[392654151,1761781841521,-293.8561432,0.00031658,2]
[392654152,1761781841531,-1500.0,0.00031668,5]
[392654153,1761781841540,-164.205994,0.00031808,31]
[392654154,1761781841549,-164.205994,0.00031808,31]
[392654155,1761781841558,-164.205994,0.00031808,31]
[392654156,1761781841566,-164.205994,0.00031808,31]
[392654157,1761781841575,-500.0,0.00031826,2]
[392654158,1761781841584,-367.78,0.00031835,3]
[392654159,1761781841593,-735.56,0.00031844,3]
[392654160,1761781841602,-490.36,0.00031845,3]
[392654161,1761781841611,-373.20134215,0.0003189,2]
[392654162,1761781841620,-1299.69,0.00031897,4]
[392654163,1761781841629,-550.95,0.00031897,4]
[392654164,1761781841638,-161.76327415,0.000319,120]
[392654165,1761781841647,-168.47838307,0.000319,120]
[392654166,1761781841656,-150.0,0.00031963,5]
[392654167,1761781841665,-360.0,0.00031969,2]
[392654168,1761781841674,-5159.0,0.00031998,2]
[392654169,1761781841683,-1340.0,0.00032,60]
[392654170,1761781841693,-192.0,0.00032002,2]
[392654171,1761781841703,-2000.0,0.00032016,5]
[392654172,1761781841712,-157.97,0.0003204,2]
[392654173,1761781841721,-164.090904,0.00032044,2]
[392654174,1761781841730,-168.0,0.00032074,2]
[392654175,1761781841739,-2000.0,0.00032116,5]
[392654176,1761781841749,-1397.83770825,0.00032144,2]
[392654177,1761781841758,-3630.95728166,0.00032158,2]
[392654178,1761781841767,-1299.69,0.00032171,4]
[392654179,1761781841775,-550.95,0.00032171,4]
[392654180,1761781841784,-2000.0,0.00032216,5]
[392654181,1761781841793,-168.0,0.00032262,7]
[392654182,1761781841802,-1725.32,0.000323,2]
[392654183,1761781841811,-168.0,0.000323,2]
[392654184,1761781841820,-420.0,0.00032311,2]
[392654185,1761781841829,-171.0,0.00032322,3]
[392654186,1761781841838,-152.277622,0.00032354,30]
[392654187,1761781841847,-168.0,0.00032364,2]
[392654188,1761781841861,-1299.69,0.00032445,4]
[392654189,1761781841870,-550.95,0.00032445,4]
[392654190,1761781841879,-250.0,0.0003251,5]
[392654191,1761781841889,-460.0,0.00032517,2]
[392654192,1761781841899,-168.0,0.0003253,2]
[392654193,1761781841908,-151.0,0.00032559,7]
[392654194,1761781841917,-2500.0,0.00032564,5]
[392654195,1761781841928,-5888.0,0.0003263,2]
[392654196,1761781841937,-2500.0,0.00032664,5]
[392654197,1761781841946,-1299.69,0.00032719,4]
[392654198,1761781841955,-550.95,0.00032719,4]
[392654199,1761781841965,-1397.83770825,0.00032728,2]
[392654200,1761781841974,-168.0,0.0003274,2]
[392654201,1761781841983,-164.205994,0.00032758,31]
[392654202,1761781841993,-164.205994,0.00032758,31]
[392654203,1761781842002,-164.205994,0.00032758,31]
[392654204,1761781842011,-164.205994,0.00032758,31]
[392654205,1761781842020,-2500.0,0.00032764,5]
[392654206,1761781842029,-5000.0,0.00032766,3]
[392654207,1761781842038,-6920.4,0.000328,7]
[392654208,1761781842048,-8524.56,0.00032858,9]
[392654209,1761781842057,-3630.95728166,0.00032886,2]
[392654210,1761781842066,-161.76327415,0.000329,120]
[392654211,1761781842173,-168.47838307,0.000329,120]
[392654212,1761781842184,-492.6638602,0.00032904,30]
[392654213,1761781842194,-393.5793405,0.00032904,30]
[392654214,1761781842203,-393.5793405,0.00032904,30]
[392654215,1761781842212,-393.5793405,0.00032904,30]
[392654216,1761781842222,-393.5793405,0.00032904,30]
[392654217,1761781842232,-2675.0,0.00032919,7]
[392654218,1761781842244,-1397.83770825,0.00032929,2]
[392654219,1761781842253,-1397.83770825,0.00032951,2]
[392654220,1761781842262,-1397.83770825,0.00032959,2]
[392654221,1761781842271,-164.205994,0.00032959,31]
[392654222,1761781842280,-164.205994,0.00032959,31]
[392654223,1761781842289,-164.205994,0.00032959,31]
[392654224,1761781842300,-164.205986,0.00032959,31]
[392654225,1761781842309,-2795.6754165,0.00032969,2]
[392654226,1761781842320,-200.0,0.00032978,10]
[392654227,1761781842330,-76461.68032605,0.00032979,7]
[392654228,1761781842342,-17686.04808324,0.00032979,7]
[392654229,1761781842354,-7670.24602755,0.00032979,7]
[392654230,1761781842364,-1299.69,0.00032993,4]
[392654231,1761781842374,-550.95,0.00032993,4]
[392654232,1761781842383,-590.4913694,0.00033041,30]
[392654233,1761781842392,-323.6456768,0.00033041,30]
[392654234,1761781842401,-296.9209673,0.00033041,30]
[392654235,1761781842410,-1397.83770825,0.00033057,2]
[392654236,1761781842419,-974.7229945,0.00033058,2]
[392654237,1761781842428,-350.0,0.00033058,5]
[392654238,1761781842439,-560.0,0.00033065,2]
[392654239,1761781842449,-983.0,0.00033082,2]
[392654240,1761781842458,-2166.0,0.00033082,2]
[392654241,1761781842467,-632.0,0.00033082,2]
[392654242,1761781842478,-150.0,0.00033082,2]
[392654243,1761781842487,-150.0,0.00033082,2]
[392654244,1761781842496,-150.0,0.00033082,2]
[392654245,1761781842507,-4210.0,0.00033082,2]
[392654246,1761781842516,-2109.8599965,0.000331,30]
[392654247,1761781842526,-3000.0,0.00033112,5]
[392654248,1761781842535,-5888.0,0.00033115,7]
[392654249,1761781842544,-1397.83770825,0.00033128,2]
[392654250,1761781842555,-5888.0,0.00033136,2]
[392654251,1761781842564,-200.0,0.00033137,10]
[392654252,1761781842575,-200.0,0.00033147,10]
[392654253,1761781842584,-200.0,0.00033157,10]
[392654255,1761781842595,-617.2519,0.00033165,2]
[392654258,1761781842606,-941.05346181,0.00033183,2]
[392654260,1761781842616,-3760.44963341,0.00033183,2]
[392654262,1761781842627,-506.35623999,0.00033183,2]
[392654265,1761781842637,-2025.42495994,0.00033183,2]
[392654268,1761781842647,-369.12530538,0.00033183,2]
[392654272,1761781842657,-692.29530695,0.00033183,2]
[392654275,1761781842666,-2766.41204656,0.00033183,2]
[392654277,1761781842675,-756.06059632,0.00033183,2]
[392654281,1761781842686,-3024.24238529,0.00033183,2]
[392654283,1761781842696,-6804.5453669,0.00033183,2]
[392654285,1761781842706,-4552.64895371,0.00033183,2]
[392654287,1761781842715,-67.26852768,0.00033183,2]
[392654290,1761781842726,-1407.75619262,0.00033183,2]
[392654292,1761781842736,-156.409106,0.00033207,2]
[392654293,1761781842745,-3000.0,0.00033212,5]
[392654294,1761781842754,-1299.69,0.00033267,4]
[392654295,1761781842763,-550.95,0.00033267,4]
[392654296,1761781842772,-436.54939647,0.00033312,5]
[392654297,1761781842781,-308.3248815,0.00033315,30]
[392654298,1761781842791,-2675.0,0.00033401,2]
[392654299,1761781842800,-151.0,0.00033488,7]
[392654301,1761781842809,-800.0,0.00033504,2]
[392654303,1761781842818,-1299.69,0.00033541,4]
[392654304,1761781842827,-550.95,0.00033541,4]
[392654305,1761781842836,-8524.51,0.00033554,10]
[392654306,1761781842845,-1725.32,0.000336,14]
[392654307,1761781842860,-450.0,0.00033606,5]
[392654308,1761781842870,-660.0,0.00033612,2]
[392654309,1761781842879,-3500.0,0.0003366,5]
[392654310,1761781842890,-2004.0,0.00033683,2]
[392654311,1761781842901,-200.0,0.000337,35]
[392654313,1761781842911,-1202.1168191,0.00033705,2]
[392654314,1761781842920,-922.12092103,0.00033751,7]
[392654315,1761781842931,-4236.87907897,0.00033751,7]
[392654316,1761781842944,-215.26,0.00033759,30]
[392654317,1761781842954,-3500.0,0.0003376,5]
[392654318,1761781842963,-500.0,0.000338,7]
[392654319,1761781842972,-195.118803,0.000338,2]
[392654320,1761781842982,-179.52613971,0.000338,2]
[392654321,1761781842991,-1299.69,0.00033815,4]
[392654322,1761781843001,-550.95,0.00033815,4]
[392654323,1761781843010,-4404.6937809,0.00033821,2]
[392654324,1761781843019,-393.5793405,0.00033863,30]
[392654325,1761781843028,-156.409106,0.00033877,5]
[392654326,1761781843037,-416.82227825,0.0003389,120]
[392654327,1761781843046,-2096.22263952,0.000339,20]
[392654328,1761781843058,-12541.95021893,0.000339,20]
[392654329,1761781843069,-847.36548177,0.000339,20]
[392654330,1761781843163,-150.0,0.00026297,30]
[392654331,1761781843174,-150.0,0.00028687,30]
[392654332,1761781843183,-412.0,0.00033082,2]